bitfinex/quotes_BTCUSD_20251221
["timestamp","ask_amount","ask_price","bid_price","bid_amount"]
[1766321403248,0.27732861,88726.0,88712.0,0.09446853]
[1766321403461,0.27732861,88726.0,88712.0,0.09190853]
[1766321403672,0.0001,88729.0,88712.0,0.09190853]
[1766321407526,0.0001,88729.0,88713.0,0.01352676]
[1766321407940,0.0338705,88738.0,88712.0,0.09190853]
[1766321407941,0.06109283,88739.0,88712.0,0.09190853]
[1766321408153,0.2640377,88744.0,88713.0,0.01352676]
[1766321408333,0.11446,88741.0,88713.0,0.01352676]
[1766321408570,0.11446,88741.0,88726.0,0.09446853]
[1766321408773,0.1766613,88741.0,88726.0,0.09446853]
[1766321408995,0.0001,88741.0,88726.0,0.09446853]
[1766321409838,0.00020515,88741.0,88726.0,0.09446853]
[1766321410254,0.00020515,88741.0,88727.0,0.01352463]
[1766321410845,1.5e-07,88741.0,88726.0,0.09446853]
[1766321416018,1.5e-07,88741.0,88725.0,0.03386392]
[1766321416019,0.000309,88726.0,88725.0,0.03386392]
[1766321416204,0.000309,88726.0,88725.0,0.03331392]
[1766321416350,0.11436,88732.0,88725.0,0.03331392]
[1766321416537,0.11436,88732.0,88712.0,0.09190853]
[1766321416740,0.11436,88732.0,88713.0,0.03386533]
[1766321416987,0.11436,88730.0,88713.0,0.03386533]
[1766321418032,0.11107,88730.0,88713.0,0.03386533]
[1766321419111,0.23017,88729.0,88713.0,0.03386533]
[1766321419951,0.11436,88728.0,88713.0,0.03386533]
[1766321420146,0.11436,88726.0,88713.0,0.03386533]
[1766321425696,0.12341,88724.0,88717.0,0.09446853]
[1766321426022,0.12341,88723.0,88717.0,0.09415953]
[1766321429133,0.09741646,88740.0,88717.0,0.09415953]
[1766321429333,0.12341,88736.0,88723.0,0.000549]
[1766321429540,0.12341,88735.0,88717.0,0.09415953]
[1766321429756,0.21299,88732.0,88717.0,0.09415953]
[1766321430051,0.12341,88729.0,88717.0,0.09415953]
[1766321430249,0.12341,88728.0,88717.0,0.09415953]
[1766321430454,0.21299,88728.0,88717.0,0.09415953]
[1766321430661,0.12341,88727.0,88717.0,0.09415953]
[1766321430901,0.21299,88727.0,88717.0,0.09415953]
[1766321431042,0.3364,88727.0,88717.0,0.09415953]
[1766321431442,0.3364,88739.0,88717.0,0.09415953]
[1766321431881,0.12341,88736.0,88717.0,0.09415953]
[1766321432078,0.12341,88732.0,88717.0,0.09415953]
[1766321432249,0.12341,88728.0,88717.0,0.09415953]
[1766321432461,0.12341,88727.0,88717.0,0.09415953]
[1766321432785,0.12341,88725.0,88707.0,0.03387088]
[1766321433021,0.12341,88725.0,88716.0,0.09446853]
[1766321435031,0.03387088,88737.0,88716.0,0.09446853]
[1766321435230,0.22927,88734.0,88716.0,0.09446853]
[1766321435450,0.22927,88732.0,88716.0,0.09446853]
[1766321435643,0.12455,88729.0,88716.0,0.09446853]
[1766321435851,0.12455,88725.0,88707.0,0.03387088]
[1766321436052,0.12455,88721.0,88707.0,0.03387088]
[1766321436261,0.06280979,88741.0,88707.0,0.03387088]
[1766321436262,0.22927,88719.0,88712.0,0.09446853]
[1766321436490,0.35382,88719.0,88712.0,0.09446853]
[1766321438444,0.35382,88719.0,88700.0,0.03387275]
[1766321438644,0.35382,88719.0,88712.0,0.09446853]
[1766321443984,0.22927,88719.0,88700.0,0.03387275]
[1766321444196,0.02920841,88718.0,88698.0,0.09446853]
[1766321444403,0.06281406,88725.0,88698.0,0.09446853]
[1766321444624,0.22927,88720.0,88698.0,0.09446853]
[1766321444835,0.12455,88717.0,88698.0,0.09446853]
[1766321445050,0.22927,88715.0,88698.0,0.09446853]
[1766321445262,0.35382,88713.0,88698.0,0.09446853]
[1766321445674,0.35382,88713.0,88687.0,0.0001]
[1766321445675,0.22927,88723.0,88696.0,0.03387451]
[1766321445882,0.12455,88724.0,88687.0,0.0001]
[1766321445883,0.12455,88718.0,88687.0,0.0001]
[1766321446089,0.12455,88709.0,88694.0,0.09446853]
[1766321446296,0.35382,88705.0,88694.0,0.09446853]
[1766321446500,0.22927,88704.0,88694.0,0.09457352]
[1766321448584,0.22927,88704.0,88694.0,0.05607314]
[1766321449067,0.12455,88703.0,88694.0,0.05607314]
[1766321450146,0.03387914,88714.0,88694.0,0.05607314]
[1766321450147,0.06171444,88714.0,88703.0,0.000549]
[1766321450402,0.06171444,88714.0,88694.0,0.05607314]
[1766321450645,0.12455,88716.0,88694.0,0.05607314]
[1766321450854,0.35382,88715.0,88694.0,0.05607314]
[1766321451029,0.22927,88714.0,88694.0,0.05607314]
[1766321451261,0.12455,88711.0,88694.0,0.05607314]
[1766321451464,0.12455,88717.0,88694.0,0.05607314]
[1766321451665,0.03387593,88719.0,88694.0,0.05607314]
[1766321451666,0.22927,88712.0,88694.0,0.05607314]
[1766321451874,0.22927,88708.0,88694.0,0.00010499]
[1766321452080,0.12455,88703.0,88694.0,4.99e-06]
[1766321452252,0.12455,88697.0,88694.0,4.99e-06]
[1766321452490,0.12455,88696.0,88694.0,4.99e-06]
[1766321452868,0.12455,88696.0,88681.0,0.03070566]
[1766321453074,0.12455,88696.0,88681.0,0.03074609]
[1766321453433,0.0338809,88711.0,88696.0,0.000549]
[1766321453615,0.22927,88707.0,88696.0,0.000549]
[1766321453820,0.22927,88707.0,88683.0,0.09446853]
[1766321453821,0.12455,88706.0,88683.0,0.09446853]
[1766321454022,0.22927,88705.0,88683.0,0.09446853]
[1766321454333,0.12455,88704.0,88683.0,0.09446853]
[1766321455571,0.12455,88703.0,88683.0,0.09446853]
[1766321456619,0.12455,88702.0,88683.0,0.09446853]
[1766321458155,0.12455,88701.0,88688.0,0.0002453]
[1766321459016,0.35382,88701.0,88688.0,0.0002453]
[1766321460109,0.12455,88700.0,88688.0,0.0002453]
[1766321460959,0.22927,88700.0,88688.0,0.0002453]
[1766321461162,0.12455,88699.0,88688.0,0.0002453]
[1766321461536,0.22927,88700.0,88688.0,0.0002453]
[1766321462515,0.12455,88698.0,88688.0,0.0002453]
[1766321463071,0.12455,88704.0,88688.0,0.0002453]
[1766321464916,0.12455,88713.0,88704.0,0.000549]
[1766321465118,0.12455,88713.0,88688.0,0.0002453]
[1766321465319,0.11758,88711.0,88688.0,0.0002453]
[1766321465521,0.11758,88707.0,88688.0,0.0002453]
[1766321465900,0.13265526,88707.0,88688.0,0.0002453]
[1766321466099,0.01507526,88707.0,88688.0,0.0002453]
[1766321466623,0.01452626,88707.0,88688.0,0.0002453]
[1766321467225,0.03387918,88715.0,88688.0,0.0002453]
[1766321467444,0.11758,88718.0,88688.0,0.0002453]
[1766321467673,0.11758,88717.0,88697.0,0.09446853]
[1766321467869,0.11758,88714.0,88698.0,0.01352905]
[1766321468062,0.32532,88713.0,88698.0,0.01352905]
[1766321468305,0.11758,88712.0,88698.0,0.01352905]
[1766321468899,0.11758,88712.0,88697.0,0.09446853]
[1766321469299,0.03387654,88719.0,88698.0,0.01352905]
[1766321469456,0.32532,88732.0,88712.0,0.00055]
[1766321469660,0.32532,88729.0,88712.0,0.00055]
[1766321469896,0.11758,88727.0,88697.0,0.09446853]
[1766321470103,0.11758,88726.0,88699.0,0.03387325]
[1766321470509,0.11758,88726.0,88700.0,0.01352874]
[1766321472510,0.11758,88724.0,88699.0,0.03391368]
[1766321472717,0.11758,88722.0,88699.0,0.03391368]
[1766321472931,0.03387325,88730.0,88699.0,4.043e-05]
[1766321472932,0.11758,88720.0,88699.0,4.043e-05]
[1766321474471,0.03387325,88730.0,88699.0,0.01356933]
[1766321474609,0.02429167,88730.0,88699.0,0.01356933]
[1766321474807,0.02429167,88730.0,88699.0,4.043e-05]
[1766321475009,0.02429167,88730.0,88711.0,0.09446853]
[1766321475213,0.11758,88731.0,88712.0,0.01352691]
[1766321476807,0.11758,88731.0,88711.0,0.09446853]
[1766321477008,0.11758,88730.0,88711.0,0.09446853]
[1766321477251,0.11758,88729.0,88711.0,0.09446853]
[1766321480975,0.03387053,88734.0,88703.0,0.03387053]
[1766321481192,0.20774,88730.0,88703.0,0.03387053]
[1766321481383,0.11758,88727.0,88703.0,0.03387053]
[1766321481583,0.32532,88725.0,88703.0,0.03387053]
[1766321481786,0.11758,88724.0,88703.0,0.03387053]
[1766321482010,0.11758,88722.0,88703.0,0.03387053]
[1766321482205,0.11758,88722.0,88699.0,4.043e-05]
[1766321482522,0.11758,88722.0,88700.0,0.03387053]
[1766321483652,0.11758,88722.0,88709.0,0.0001]
[1766321484633,0.20774,88723.0,88709.0,0.0001]
[1766321485162,0.32532,88723.0,88709.0,0.0001]
[1766321485867,0.20774,88723.0,88709.0,0.0001]
[1766321486842,0.32408,88723.0,88709.0,0.0001]
[1766321488548,0.11634,88722.0,88709.0,0.0001]
[1766321488783,0.11634,88718.0,88709.0,0.0001]
[1766321490107,0.20753,88719.0,88709.0,0.0001]
[1766321490313,0.11634,88723.0,88709.0,0.0001]
[1766321492909,0.11634,88719.0,88701.0,0.03387053]
[1766321493059,0.11634,88715.0,88701.0,0.03387053]
[1766321493583,0.11634,88715.0,88699.0,4.043e-05]
[1766321494642,0.11306,88715.0,88699.0,4.043e-05]
[1766321495065,0.21196,88714.0,88699.0,4.043e-05]
[1766321498015,0.21196,88710.0,88699.0,4.3e-07]
[1766321498171,0.11786,88705.0,88699.0,4.3e-07]
[1766321498379,0.21196,88702.0,88699.0,4.3e-07]
[1766321498581,0.32982,88702.0,88699.0,4.3e-07]
[1766321499417,0.21196,88714.0,88702.0,0.00014]
[1766321499592,0.11786,88711.0,88702.0,0.00014]
[1766321499792,0.21196,88708.0,88699.0,4.3e-07]
[1766321499994,0.21196,88707.0,88699.0,4.3e-07]
[1766321500222,0.11786,88706.0,88699.0,4.3e-07]
[1766321501098,0.11786,88705.0,88699.0,4.3e-07]
[1766321501710,0.21196,88702.0,88699.0,4.3e-07]
[1766321502029,0.32982,88701.0,88699.0,4.3e-07]
[1766321503280,0.11786,88700.0,88699.0,4.3e-07]
[1766321503696,0.32982,88700.0,88699.0,4.3e-07]
[1766321508796,0.32968,88700.0,88699.0,4.3e-07]
[1766321518986,0.03387394,88705.0,88699.0,4.3e-07]
[1766321519208,0.0629358,88709.0,88705.0,0.00055]
[1766321519412,0.11786,88707.0,88699.0,4.3e-07]
[1766321519618,0.21196,88706.0,88699.0,4.3e-07]
[1766321519815,0.11786,88705.0,88699.0,4.3e-07]
[1766321520017,0.11786,88704.0,88699.0,4.3e-07]
[1766321521225,0.11786,88703.0,88699.0,4.3e-07]
[1766321521607,0.03035709,88721.0,88699.0,4.3e-07]
[1766321521608,0.11786,88719.0,88699.0,4.3e-07]
[1766321521818,0.11786,88728.0,88699.0,4.3e-07]
[1766321522029,0.0001,88729.0,88700.0,0.09446853]
[1766321522030,0.02424534,88727.0,88700.0,0.09446853]
[1766321522234,0.0001,88729.0,88700.0,0.09446853]
[1766321522448,0.11796,88729.0,88701.0,0.03386965]
[1766321523020,0.15433897,88729.0,88701.0,0.03386965]
[1766321523832,0.15433897,88729.0,88700.0,0.09446853]
[1766321524233,0.11796,88729.0,88700.0,0.09446853]
[1766321524698,0.21196,88728.0,88700.0,0.09446853]
[1766321524926,0.32982,88728.0,88700.0,0.09446853]
[1766321525397,0.11752,88727.0,88700.0,0.09446853]
[1766321525846,0.11752,88727.0,88699.0,4.3e-07]
[1766321525847,0.20655,88722.0,88701.0,0.09446853]
[1766321526053,0.11752,88717.0,88701.0,0.09446853]
[1766321526460,0.20655,88718.0,88701.0,0.09446853]
[1766321526702,0.32407,88718.0,88701.0,0.09446853]
[1766321527675,0.20655,88728.0,88701.0,0.09446853]
[1766321527893,0.11762,88729.0,88701.0,0.09446853]
[1766321527894,0.11752,88727.0,88701.0,0.09446853]
[1766321528116,0.11752,88726.0,88701.0,0.09446853]
[1766321528482,0.0001,88715.0,88701.0,0.09446853]
[1766321531927,0.0001,88715.0,88701.0,0.09286853]
[1766321532537,0.11762,88715.0,88701.0,0.09286853]
[1766321537371,0.0001,88715.0,88701.0,0.09286853]
[1766321537952,0.32407,88722.0,88701.0,0.09286853]
[1766321543446,0.32407,88722.0,88705.0,0.0001]
[1766321543731,0.20655,88722.0,88705.0,0.0001]
[1766321543942,0.11752,88721.0,88701.0,0.09286853]
[1766321544152,0.20655,88719.0,88701.0,0.09286853]
[1766321544355,0.11752,88717.0,88701.0,0.09286853]
[1766321545182,0.20655,88718.0,88701.0,0.09286853]
[1766321549472,0.11693,88717.0,88701.0,0.09286853]
[1766321549759,0.000449,88701.0,88699.0,4.3e-07]
[1766321550321,0.11693,88709.0,88699.0,4.3e-07]
[1766321553655,0.21185,88710.0,88699.0,4.3e-07]
[1766321556361,0.20912,88708.0,88699.0,4.3e-07]
[1766321556566,0.06256333,88722.0,88699.0,4.3e-07]
[1766321556567,0.20912,88702.0,88699.0,4.3e-07]
[1766321556774,0.20912,88699.0,88695.0,4.3e-07]
[1766321556928,0.11321,88698.0,88695.0,4.3e-07]
[1766321557347,0.20912,88699.0,88695.0,4.3e-07]
[1766321560280,0.11321,88698.0,88695.0,4.3e-07]
[1766321563381,0.20912,88699.0,88695.0,4.3e-07]
[1766321566392,0.32233,88699.0,88695.0,4.3e-07]
[1766321570440,0.11321,88698.0,88695.0,4.3e-07]
[1766321570655,0.32233,88696.0,88695.0,4.3e-07]
[1766321573417,0.20912,88696.0,88695.0,4.3e-07]
[1766321573595,0.11321,88701.0,88695.0,4.3e-07]
[1766321576351,0.06252288,88707.0,88695.0,4.3e-07]
[1766321576850,0.00625229,88706.0,88695.0,4.3e-07]
[1766321577049,0.11616284,88717.0,88695.0,6.112e-05]
[1766321577230,0.11616284,88717.0,88695.0,1.2e-07]
[1766321577231,0.11321,88715.0,88695.0,1.2e-07]
[1766321577446,0.11321,88713.0,88695.0,1.2e-07]
[1766321577619,0.11321,88709.0,88695.0,1.2e-07]
[1766321577819,0.11321,88707.0,88695.0,1.2e-07]
[1766321578024,0.20912,88704.0,88695.0,1.2e-07]
[1766321578386,0.20912,88700.0,88695.0,1.2e-07]
[1766321578519,0.11321,88699.0,88695.0,1.2e-07]
[1766321583486,0.20912,88700.0,88695.0,1.2e-07]
[1766321584238,0.208959,88700.0,88695.0,1.2e-07]
[1766321584843,0.322169,88700.0,88695.0,1.2e-07]
[1766321585050,0.12394,88699.0,88695.0,1.2e-07]
[1766321586085,0.20216,88699.0,88695.0,1.2e-07]
[1766321586294,0.12394,88698.0,88695.0,1.2e-07]
[1766321588544,0.12394,88702.0,88695.0,1.2e-07]
[1766321588753,0.12394,88700.0,88695.0,1.2e-07]
[1766321590514,0.3261,88700.0,88695.0,1.2e-07]
[1766321590948,0.12394,88699.0,88695.0,1.2e-07]
[1766321591212,0.3261,88696.0,88695.0,1.2e-07]
[1766321591861,0.20216,88696.0,88695.0,1.2e-07]
[1766321592056,0.03035709,88715.0,88695.0,1.2e-07]
[1766321592263,0.3261,88713.0,88695.0,1.2e-07]
[1766321592541,0.03484077,88712.0,88695.0,1.2e-07]
[1766321592739,0.12394,88708.0,88695.0,1.2e-07]
[1766321592942,0.03035709,88715.0,88695.0,1.2e-07]
[1766321592943,0.20216,88705.0,88695.0,1.2e-07]
[1766321593248,0.12394,88702.0,88695.0,1.2e-07]
[1766321593421,0.20216,88700.0,88695.0,1.2e-07]
[1766321593624,0.12394,88699.0,88695.0,1.2e-07]
[1766321596085,0.20216,88700.0,88695.0,1.2e-07]
[1766321596675,0.12394,88704.0,88695.0,1.2e-07]
[1766321597443,0.00131988,88695.0,88674.0,0.03388105]
[1766321599192,0.20216,88707.0,88667.0,0.08112508]
[1766321599394,0.02430193,88706.0,88668.0,0.08112508]
[1766321599598,0.02430193,88706.0,88675.0,0.03388105]
[1766321600201,0.14824193,88706.0,88675.0,0.03388105]
[1766321600402,0.14824193,88705.0,88675.0,0.03388105]
[1766321600584,0.12394,88705.0,88675.0,0.03388105]
[1766321604207,0.15429709,88715.0,88676.0,0.01353241]
[1766321604510,0.12394,88712.0,88680.0,0.03387788]
[1766321604653,0.12394,88710.0,88680.0,0.03387788]
[1766321604855,0.15879404,88709.0,88680.0,0.03387788]
[1766321605072,0.11291,88707.0,88680.0,0.03387788]
[1766321605275,0.02430501,88706.0,88680.0,0.03387788]
[1766321605658,0.32435,88705.0,88680.0,0.03387788]
[1766321607438,0.032435,88704.0,88668.0,0.08112508]
[1766321607641,0.21144,88701.0,88663.0,0.09446853]
[1766321607844,0.11291,88696.0,88670.0,0.03388293]
[1766321608049,0.11291,88692.0,88670.0,0.03388293]
[1766321608249,0.11291,88690.0,88670.0,0.03388293]
[1766321609851,0.145345,88690.0,88670.0,0.03388293]
[1766321610434,0.11291,88689.0,88670.0,0.03388293]
[1766321610841,0.21144,88690.0,88670.0,0.03388293]
[1766321612899,0.21144,88697.0,88677.0,0.09446853]
[1766321613046,0.32435,88697.0,88677.0,0.09446853]
[1766321613246,0.32435,88696.0,88677.0,0.09446853]
[1766321617558,0.32442679,88696.0,88677.0,0.09446853]
[1766321618498,7.679e-05,88696.0,88677.0,0.09446853]
[1766321626032,0.000304,88677.0,88663.0,0.09446853]
[1766321626250,0.000304,88677.0,88666.0,0.03388565]
[1766321626438,0.12382,88684.0,88666.0,0.03388565]
[1766321626695,0.12382,88684.0,88663.0,0.09446853]
[1766321626903,0.12382,88684.0,88664.0,0.03388565]
[1766321627119,0.16541985,88684.0,88664.0,0.03388565]
[1766321627335,0.19771,88686.0,88664.0,0.03388565]
[1766321628463,0.12382,88689.0,88664.0,0.03388565]
[1766321628913,0.09446853,88691.0,88664.0,0.03388565]
[1766321630831,0.21828853,88691.0,88664.0,0.03388565]
[1766321631182,0.09446853,88691.0,88664.0,0.03388565]
[1766321631403,0.12382,88690.0,88664.0,0.03388565]
[1766321631637,0.12382,88690.0,88676.0,0.00036798]
[1766321631850,0.12382,88690.0,88664.0,0.03388565]
[1766321632660,0.12382,88690.0,88663.0,0.09446853]
[1766321632873,0.12382,88690.0,88664.0,0.03388565]
[1766321634373,0.12382,88688.0,88664.0,0.03388565]
[1766321634571,0.19771,88685.0,88664.0,0.03388565]
[1766321635522,0.32153,88685.0,88664.0,0.03388565]
[1766321637061,0.32153,88685.0,88680.0,0.00024534]
[1766321637208,0.32153,88685.0,88664.0,0.03388565]
[1766321637409,0.32153,88685.0,88651.0,0.08112508]
[1766321637628,0.32153,88685.0,88661.0,0.09446853]
[1766321637959,0.12382,88689.0,88661.0,0.09446853]
[1766321638309,0.12382,88689.0,88662.0,0.03388565]
[1766321641072,0.19771,88688.0,88662.0,0.03388565]
[1766321641275,0.32153,88688.0,88662.0,0.03388565]
[1766321641542,0.19771,88686.0,88662.0,0.12835418]
[1766321641699,0.12382,88684.0,88662.0,0.12835418]
[1766321641907,0.02921785,88685.0,88684.0,0.00049]
[1766321642107,0.19771,88691.0,88662.0,0.12835418]
[1766321642958,0.12382,88690.0,88662.0,0.09446853]
[1766321643235,0.12382,88690.0,88663.0,0.04006253]
[1766321645292,0.12382,88690.0,88663.0,0.00944685]
[1766321645494,0.12382,88690.0,88664.0,0.03388568]
[1766321649498,7.679e-05,88696.0,88664.0,0.03388568]
[1766321649804,7.679e-05,88696.0,88665.0,0.01378011]
[1766321650453,7.679e-05,88696.0,88666.0,0.03388297]
[1766321650654,0.12306679,88696.0,88666.0,0.03388297]
[1766321651207,0.12299,88695.0,88666.0,0.03388297]
[1766321654962,7.679e-05,88696.0,88666.0,0.03388297]
[1766321655214,0.11875055,88705.0,88667.0,0.01421316]
[1766321655482,0.03482158,88704.0,88667.0,0.01428995]
[1766321655683,0.01053956,88703.0,88667.0,0.01428995]
[1766321655932,0.03482158,88703.0,88667.0,0.01428995]
[1766321656144,0.12299,88700.0,88667.0,0.01428995]
[1766321656348,0.19863,88697.0,88668.0,0.01087585]
[1766321656594,0.19863,88697.0,88668.0,0.04475882]
[1766321658148,0.19979,88703.0,88669.0,0.01353347]
[1766321658349,0.02427921,88702.0,88676.0,0.09446853]
[1766321658574,0.02427921,88702.0,88677.0,0.00944685]
[1766321658749,0.19979,88703.0,88677.0,0.04332775]
[1766321659059,0.06087986,88706.0,88677.0,0.04332775]
[1766321659277,0.02427767,88706.0,88677.0,0.04332775]
[1766321659464,0.02427767,88706.0,88678.0,0.01377963]
[1766321660062,0.02427767,88709.0,88679.0,0.01353195]
[1766321660672,0.02427767,88709.0,88680.0,0.03387952]
[1766321660869,0.02427767,88709.0,88681.0,0.01353164]
[1766321661270,0.02427767,88709.0,88681.0,0.01249164]
[1766321661487,0.02427767,88709.0,88682.0,0.01546193]
[1766321661854,0.02427767,88709.0,88683.0,0.01249134]
[1766321663318,0.02427767,88709.0,88682.0,0.04934134]
[1766321663319,0.09446853,88707.0,88682.0,0.04934134]
[1766321663661,0.12474,88705.0,88682.0,0.04934134]
[1766321664185,0.12474,88704.0,88682.0,0.01546193]
[1766321664323,0.12474,88704.0,88683.0,0.01099305]
[1766321667521,0.19979,88704.0,88683.0,0.01099305]
[1766321667724,0.12474,88703.0,88683.0,0.01099305]
[1766321667887,0.19979,88702.0,88683.0,0.01099305]
[1766321668478,0.12474,88701.0,88683.0,0.01099305]
[1766321668696,0.12474,88700.0,88681.0,0.03387941]
[1766321668902,0.19979,88701.0,88681.0,0.03387941]
[1766321669322,0.12474,88704.0,88681.0,0.03387941]
[1766321678685,0.31616,88708.0,88681.0,0.03387941]
[1766321678888,0.02428071,88707.0,88681.0,0.03387941]
[1766321679118,0.02428071,88707.0,88682.0,0.01283479]
[1766321679497,0.14065071,88707.0,88682.0,0.01283479]
[1766321679736,0.02428071,88706.0,88682.0,0.01283479]
[1766321681007,0.11637,88703.0,88682.0,0.01283479]
[1766321691361,0.11637,88701.0,88682.0,0.01283479]
[1766321691569,0.148337,88701.0,88681.0,0.03387941]
[1766321695419,0.11637,88700.0,88681.0,0.03387941]
[1766321695851,0.2033,88699.0,88681.0,0.03387941]
[1766321696057,0.11637,88698.0,88681.0,0.03382041]
[1766321697660,0.2033,88698.0,88681.0,0.03382041]
[1766321698301,0.11637,88695.0,88681.0,0.03382041]
[1766321698458,0.11637,88693.0,88681.0,0.03382041]
[1766321698883,0.11637,88693.0,88676.0,0.09446853]
[1766321699108,0.11637,88693.0,88677.0,0.03387941]
[1766321701189,0.00104011,88692.0,88677.0,0.03387941]
[1766321702860,0.11637,88687.0,88667.0,7.679e-05]
[1766321702982,0.00104011,88686.0,88667.0,7.679e-05]
[1766321703189,0.11637,88684.0,88674.0,0.03388297]
[1766321705489,0.2033,88685.0,88674.0,0.03388297]
[1766321707316,0.31844,88685.0,88674.0,0.03388297]
[1766321708424,0.00104011,88684.0,88674.0,0.03388297]
[1766321710954,0.11514,88683.0,88674.0,0.03388297]
[1766321712109,0.11514,88697.0,88674.0,2.97e-06]
[1766321712330,0.11514,88676.0,88667.0,7.679e-05]
[1766321712553,0.11514,88671.0,88667.0,7.679e-05]
[1766321714281,0.114591,88671.0,88667.0,7.679e-05]
[1766321714479,0.21088,88672.0,88667.0,7.679e-05]
[1766321715233,7.6e-05,88667.0,88656.0,0.04516]
[1766321715475,0.21088,88666.0,88656.0,0.0452676]
[1766321716108,0.21088,88665.0,88656.0,0.0452676]
[1766321716301,0.11514,88664.0,88656.0,0.0001076]
[1766321717711,0.32602,88664.0,88656.0,0.0001076]
[1766321717905,0.11514,88663.0,88656.0,0.0001076]
[1766321718174,0.11514,88660.0,88656.0,6e-07]
[1766321718371,0.11514,88657.0,88656.0,6e-07]
[1766321718592,0.32602,88657.0,88656.0,6e-07]
[1766321718928,0.03389591,88668.0,88646.0,0.03389591]
[1766321719274,0.11514,88659.0,88646.0,0.03389591]
[1766321719437,0.11514,88655.0,88648.0,0.00024562]
[1766321719623,0.11514,88654.0,88648.0,0.00024562]
[1766321720919,0.32602,88654.0,88648.0,0.00024562]
[1766321721146,0.11514,88652.0,88648.0,6.2e-07]
[1766321722348,0.00104011,88651.0,88648.0,6.2e-07]
[1766321723671,0.11514,88651.0,88648.0,6.2e-07]
[1766321724389,0.147742,88651.0,88648.0,6.2e-07]
[1766321724778,0.11514,88651.0,88648.0,6.2e-07]
[1766321725799,0.21088,88653.0,88651.0,0.000352]
[1766321726351,0.21088,88653.0,88648.0,6.2e-07]
[1766321727630,0.12083,88655.0,88648.0,6.2e-07]
[1766321727831,0.19373,88652.0,88648.0,6.2e-07]
[1766321727974,0.12083,88650.0,88648.0,6.2e-07]
[1766321728441,0.19373,88650.0,88648.0,6.2e-07]
[1766321728656,0.12083,88649.0,88648.0,6.2e-07]
[1766321728947,0.19373,88650.0,88648.0,6.2e-07]
[1766321730291,0.00564,88657.0,88648.0,6.2e-07]
[1766321730496,0.09530853,88674.0,88650.0,0.00055]
[1766321730497,0.00084,88674.0,88650.0,0.00055]
[1766321730680,0.00572898,88668.0,88650.0,0.00055]
[1766321730941,0.00572898,88668.0,88648.0,6.2e-07]
[1766321731368,0.00572898,88668.0,88649.0,0.03389223]
[1766321733533,0.00517898,88668.0,88649.0,0.03389223]
[1766321734159,0.00084,88674.0,88649.0,0.03389223]
[1766321734365,0.00564,88678.0,88649.0,0.03425055]
[1766321734591,0.12083,88681.0,88649.0,0.03425055]
[1766321735051,0.00564,88682.0,88656.0,0.09446853]
[1766321735267,0.00564,88682.0,88657.0,0.06160049]
[1766321736364,0.15261699,88686.0,88658.0,0.03388699]
[1766321736581,0.00564,88685.0,88658.0,0.03388699]
[1766321740250,0.12437,88685.0,88658.0,0.03388699]
[1766321740596,0.20125,88685.0,88658.0,0.03388699]
[1766321740787,0.11873,88682.0,88658.0,0.03388699]
[1766321741491,0.19561,88682.0,88658.0,0.03388699]
[1766321741727,0.11873,88681.0,88658.0,0.03388699]
[1766321748319,0.00564,88685.0,88658.0,0.03388699]
[1766321749555,0.19561,88683.0,88658.0,0.03388699]
[1766321749754,0.11873,88682.0,88659.0,0.0189956]
[1766321750349,0.11873,88682.0,88660.0,0.03388499]
[1766321751619,0.31434,88679.0,88661.0,0.0508]
[1766321751776,0.11977011,88678.0,88661.0,0.0508]
[1766321753787,0.11873,88677.0,88660.0,0.03388499]
[1766321754013,0.00564,88685.0,88660.0,0.03388499]
[1766321754014,0.11873,88674.0,88662.0,0.00564]
[1766321754373,0.1283549,88690.0,88660.0,0.03388499]
[1766321754374,0.000549,88662.0,88660.0,0.03388499]
[1766321754526,0.00104011,88666.0,88661.0,0.00509]
[1766321754710,0.11873,88665.0,88659.0,0.00564]
[1766321754939,0.11873,88665.0,88658.0,0.00564]
[1766321755386,0.00104011,88664.0,88658.0,0.00564]
[1766321756540,0.11873,88664.0,88658.0,0.00564]
[1766321756775,0.00104011,88663.0,88658.0,0.00564]
[1766321757119,0.00104011,88663.0,88658.0,0.005091]
[1766321757350,0.11977011,88663.0,88658.0,0.005091]
[1766321757550,0.11977011,88663.0,88658.0,0.01350522]
[1766321757934,0.00104011,88662.0,88658.0,0.00564]
[1766321758118,0.11977011,88662.0,88658.0,0.00564]
[1766321759049,0.03037934,88689.0,88658.0,0.00564]
[1766321759050,0.19561,88680.0,88662.0,0.001099]
[1766321759220,0.11873,88675.0,88662.0,0.001099]
[1766321759423,0.00564,88679.0,88659.0,0.03388798]
[1766321759424,0.11873,88673.0,88663.0,0.00564]
[1766321760565,0.19561,88674.0,88663.0,0.00564]
[1766321763315,0.31434,88674.0,88663.0,0.00564]
[1766321764113,0.00564,88673.0,88658.0,0.03389047]
[1766321764283,0.03388798,88683.0,88658.0,0.00564]
[1766321764284,0.11873,88670.0,88658.0,0.00564]
[1766321764478,0.11873,88668.0,88658.0,0.00564]
[1766321764682,0.19561,88668.0,88658.0,0.00564]
[1766321764892,0.11873,88667.0,88658.0,0.00564]
[1766321766281,0.32047,88667.0,88658.0,0.00564]
[1766321766487,0.12469,88665.0,88658.0,0.00564]
[1766321766703,0.12469,88664.0,88658.0,0.00564]
[1766321768136,0.12469,88664.0,88649.0,0.00035832]
[1766321768345,0.12469,88664.0,88650.0,0.00564]
[1766321768548,0.12469,88664.0,88651.0,0.00564]
[1766321768762,0.12469,88664.0,88649.0,0.00035832]
[1766321768931,0.12469,88664.0,88652.0,0.00564]
[1766321771280,0.12469,88664.0,88649.0,0.00035832]
[1766321771511,0.12469,88662.0,88653.0,0.00564]
[1766321771830,0.20174,88659.0,88653.0,0.00564]
[1766321772031,0.12469,88657.0,88651.0,0.00564]
[1766321772228,0.32643,88656.0,88649.0,0.00599832]
[1766321772449,0.12469,88655.0,88649.0,0.00035832]
[1766321772655,0.12469,88652.0,88644.0,0.00564]
[1766321772861,0.12504894,88652.0,88644.0,0.00564]
[1766321773471,0.00035894,88652.0,88644.0,0.00564]
[1766321773918,0.00035894,88652.0,88628.0,0.03389587]
[1766321773919,0.20174,88651.0,88628.0,0.03389587]
[1766321774265,0.00035894,88652.0,88616.0,0.00564]
[1766321774266,0.20194,88635.0,88616.0,0.00564]
[1766321774437,0.20758,88635.0,88616.0,0.00564]
[1766321774611,0.20738,88635.0,88616.0,0.00564]
[1766321775162,0.000349,88616.0,88612.0,0.0002]
[1766321775305,0.20174,88628.0,88612.0,0.0002]
[1766321775507,0.09446853,88644.0,88628.0,0.00055]
[1766321775508,0.03390748,88637.0,88628.0,0.00055]